lending/lending_fUSD_20241229
["ID","MTS","AMOUNT","RATE_DAILY","PERIOD"]
[347092669,1735493443875,-500.0,0.00012354,2]
[347092670,1735493443885,-328.18,0.00012355,2]
[347092671,1735493443895,-212.12,0.00012355,2]
[347092672,1735493443906,-500.0,0.00012355,2]
[347092673,1735493443916,-500.0,0.00012355,2]
[347092674,1735493443926,-500.0,0.00012355,2]
[347092675,1735493443935,-436.42,0.00012355,2]
[347092676,1735493443946,-500.0,0.00012355,2]
[347092677,1735493443960,-500.0,0.00012355,2]
[347092678,1735493443970,-488.16,0.00012355,2]
[347092679,1735493443981,-500.0,0.00012355,2]
[347092680,1735493443991,-500.0,0.00012355,2]
[347092681,1735493444000,-400.7,0.00012355,2]
[347092682,1735493444010,-500.0,0.00012355,2]
[347092683,1735493444020,-500.0,0.00012355,2]
[347092684,1735493444029,-500.0,0.00012355,2]
[347092685,1735493444039,-551.42,0.00012355,2]
[347092686,1735493444050,-500.0,0.00012355,2]
[347092687,1735493444060,-500.0,0.00012355,2]
[347092688,1735493444070,-333.89,0.00012355,2]
[347092689,1735493444082,-500.0,0.00012355,2]
[347092690,1735493444092,-500.0,0.00012355,2]
[347092691,1735493444102,-163.1,0.00012355,2]
[347092692,1735493444111,-500.0,0.00012355,2]
[347092693,1735493444121,-778.59,0.00012355,2]
[347092694,1735493444130,-356.9,0.00012355,2]
[347092695,1735493444140,-250.9,0.00012355,2]
[347092696,1735493444150,-500.0,0.00012355,2]
[347092697,1735493444160,-469.06,0.00012355,2]
[347092698,1735493444170,-500.0,0.00012355,2]
[347092699,1735493444179,-500.0,0.00012355,2]
[347092700,1735493444189,-500.0,0.00012355,2]
[347092701,1735493444199,-500.0,0.00012355,2]
[347092702,1735493444209,-500.0,0.00012355,2]
[347092703,1735493444219,-480.1,0.00012355,2]
[347092704,1735493444228,-500.0,0.00012355,2]
[347092705,1735493444239,-212.3,0.00012355,2]
[347092706,1735493444249,-500.0,0.00012355,2]
[347092707,1735493444259,-500.0,0.00012355,2]
[347092708,1735493444269,-641.68,0.00012355,2]
[347092709,1735493444279,-500.0,0.00012355,2]
[347092710,1735493444289,-500.0,0.00012355,2]
[347092711,1735493444298,-500.0,0.00012355,2]
[347092712,1735493444308,-500.0,0.00012355,2]
[347092713,1735493444318,-500.0,0.00012355,2]
[347092714,1735493444327,-500.0,0.00012355,2]
[347092715,1735493444337,-500.0,0.00012355,2]
[347092716,1735493444347,-500.0,0.00012355,2]
[347092717,1735493444356,-500.0,0.00012355,2]
[347092718,1735493444366,-393.46,0.00012355,2]
[347092719,1735493444376,-500.0,0.00012355,2]
[347092720,1735493444385,-1356.36,0.00012355,2]
[347092721,1735493444395,-153.095503,0.00012355,2]
[347092722,1735493444405,-500.0,0.00012355,2]
[347092723,1735493444415,-151.299562,0.00012355,2]
[347092724,1735493444425,-500.0,0.00012355,2]
[347092725,1735493444435,-500.0,0.00012355,2]
[347092726,1735493444444,-500.0,0.00012355,2]
[347092727,1735493444454,-500.0,0.00012355,2]
[347092728,1735493444464,-500.0,0.00012355,2]
[347092729,1735493444474,-500.0,0.00012355,2]
[347092730,1735493444484,-500.0,0.00012355,2]
[347092731,1735493444495,-500.0,0.00012355,2]
[347092732,1735493444504,-526.0,0.00012355,2]
[347092733,1735493444514,-500.0,0.00012355,2]
[347092734,1735493444523,-339.13,0.00012355,2]
[347092735,1735493444533,-415.74,0.00012355,2]
[347092736,1735493444542,-167.49,0.00012355,2]
[347092737,1735493444552,-500.0,0.00012355,2]
[347092738,1735493444567,-500.0,0.00012355,2]
[347092739,1735493444579,-1707.38,0.00012355,2]
[347092740,1735493444588,-192.14,0.00012355,2]
[347092741,1735493444599,-500.0,0.00012355,2]
[347092742,1735493444609,-500.0,0.00012355,2]
[347092743,1735493444620,-500.0,0.00012355,2]
[347092744,1735493444629,-500.0,0.00012355,2]
[347092745,1735493444640,-500.0,0.00012355,2]
[347092746,1735493444651,-599.83,0.00012355,2]
[347092747,1735493444661,-382.93,0.00012355,2]
[347092748,1735493444671,-218.49,0.00012355,2]
[347092749,1735493444682,-334.71,0.00012355,2]
[347092750,1735493444692,-500.0,0.00012355,2]
[347092751,1735493444706,-500.0,0.00012355,2]
[347092752,1735493444716,-193.43,0.00012355,2]
[347092753,1735493444726,-500.0,0.00012355,2]
[347092754,1735493444735,-500.0,0.00012355,2]
[347092755,1735493444746,-500.0,0.00012355,2]
[347092756,1735493444755,-272.14,0.00012355,2]
[347092757,1735493444766,-607.36,0.00012355,2]
[347092758,1735493444775,-408.21,0.00012355,2]
[347092759,1735493444786,-500.0,0.00012355,2]
[347092760,1735493444797,-500.0,0.00012355,2]
[347092761,1735493444807,-500.0,0.00012355,2]
[347092762,1735493444816,-500.0,0.00012355,2]
[347092763,1735493444827,-500.0,0.00012355,2]
[347092764,1735493444837,-500.0,0.00012355,2]
[347092765,1735493444846,-161.25,0.00012356,2]
[347092766,1735493444856,-487.52,0.00012356,2]
[347092767,1735493444866,-500.0,0.00012356,2]
[347092768,1735493444875,-621.61,0.00012356,2]
[347092769,1735493444885,-500.0,0.00012356,2]
[347092770,1735493444895,-500.0,0.00012356,2]
[347092771,1735493444905,-500.0,0.00012356,2]
[347092772,1735493444915,-217.64,0.00012356,2]
[347092773,1735493444925,-416.09,0.00012356,2]
[347092774,1735493444934,-314.21,0.00012356,2]
[347092775,1735493444944,-364.53,0.00012356,2]
[347092776,1735493444954,-500.0,0.00012356,2]
[347092777,1735493444965,-371.24,0.00012356,2]
[347092778,1735493444975,-500.0,0.00012356,2]
[347092779,1735493444985,-500.0,0.00012356,2]
[347092780,1735493444994,-500.0,0.00012356,2]
[347092781,1735493445004,-396.25,0.00012356,2]
[347092782,1735493445014,-500.0,0.00012356,2]
[347092783,1735493445024,-500.0,0.00012356,2]
[347092784,1735493445034,-591.31,0.00012356,2]
[347092785,1735493445044,-500.0,0.00012356,2]
[347092786,1735493445054,-341.6,0.00012356,2]
[347092787,1735493445064,-500.0,0.00012356,2]
[347092788,1735493445074,-500.0,0.00012356,2]
[347092789,1735493445084,-500.0,0.00012356,2]
[347092790,1735493445095,-307.58,0.00012356,2]
[347092792,1735493445105,-152.55,0.00012356,2]
[347092793,1735493445300,-563.21,0.00012356,2]
[347092794,1735493445310,-500.0,0.00012356,2]
[347092795,1735493445321,-721.2,0.00012356,2]
[347092796,1735493445330,-413.94,0.00012356,2]
[347092797,1735493445340,-177.93,0.00012356,2]
[347092798,1735493445350,-500.0,0.00012356,2]
[347092800,1735493445360,-180.25,0.00012356,2]
[347092801,1735493445370,-500.0,0.00012356,2]
[347092802,1735493445380,-507.48,0.00012356,2]
[347092803,1735493445391,-500.0,0.00012356,2]
[347092804,1735493445400,-500.0,0.00012357,2]
[347092805,1735493445411,-500.0,0.00012357,2]
[347092806,1735493445421,-3098.49,0.00012357,2]
[347092807,1735493445430,-500.0,0.00012357,2]
[347092808,1735493445440,-500.0,0.00012357,2]
[347092809,1735493445451,-500.0,0.00012357,2]
[347092810,1735493445461,-1148.81,0.00012357,2]
[347092811,1735493445470,-500.0,0.00012357,2]
[347092813,1735493445481,-306.64,0.00012357,2]
[347092814,1735493445491,-500.0,0.00012357,2]
[347092815,1735493445500,-500.0,0.00012357,2]
[347092816,1735493445511,-500.0,0.00012357,2]
[347092817,1735493445521,-500.0,0.00012357,2]
[347092818,1735493445531,-468.69,0.00012357,2]
[347092819,1735493445540,-500.0,0.00012357,2]
[347092820,1735493445551,-500.0,0.00012357,2]
[347092821,1735493445561,-534.18,0.00012357,2]
[347092822,1735493445570,-313.92,0.00012357,2]
[347092823,1735493445581,-338.65,0.00012357,2]
[347092824,1735493445591,-500.0,0.00012357,2]
[347092825,1735493445600,-542.33,0.00012357,2]
[347092826,1735493445611,-354.05,0.00012357,2]
[347092827,1735493445621,-500.0,0.00012357,2]
[347092828,1735493445631,-500.0,0.00012357,2]
[347092829,1735493445640,-500.0,0.00012357,2]
[347092830,1735493445650,-500.0,0.00012357,2]
[347092831,1735493445660,-500.0,0.00012357,2]
[347092832,1735493445669,-203.31,0.00012357,2]
[347092833,1735493445679,-500.0,0.00012357,2]
[347092834,1735493445688,-500.0,0.00012357,2]
[347092835,1735493445698,-500.0,0.00012357,2]
[347092836,1735493445707,-500.0,0.00012357,2]
[347092837,1735493445716,-500.0,0.00012357,2]
[347092838,1735493445726,-500.0,0.00012357,2]
[347092839,1735493445736,-500.0,0.00012357,2]
[347092840,1735493445745,-500.0,0.00012357,2]
[347092841,1735493445755,-500.0,0.00012357,2]
[347092842,1735493445764,-500.0,0.00012357,2]
[347092843,1735493445773,-710.53,0.00012357,2]
[347092844,1735493445784,-500.0,0.00012357,2]
[347092845,1735493445793,-500.0,0.00012357,2]
[347092846,1735493445803,-500.0,0.00012357,2]
[347092847,1735493445812,-789.75,0.00012357,2]
[347092848,1735493445822,-500.0,0.00012357,2]
[347092849,1735493445832,-531.59,0.00012357,2]
[347092850,1735493445841,-500.0,0.00012357,2]
[347092851,1735493445851,-619.53,0.00012357,2]
[347092852,1735493445861,-353.55,0.00012358,2]
[347092853,1735493445871,-340.97,0.00012358,2]
[347092854,1735493445880,-568.54,0.00012358,2]
[347092855,1735493445890,-500.0,0.00012358,2]
[347092856,1735493445899,-515.98,0.00012358,2]
[347092857,1735493445910,-500.0,0.00012358,2]
[347092858,1735493445919,-500.0,0.00012358,2]
[347092859,1735493445929,-272.17,0.00012358,2]
[347092860,1735493445939,-500.0,0.00012358,2]
[347092861,1735493445949,-500.0,0.00012358,2]
[347092862,1735493445962,-500.0,0.00012358,2]
[347092863,1735493445971,-500.0,0.00012358,2]
[347092864,1735493445981,-500.0,0.00012358,2]
[347092865,1735493445990,-500.0,0.00012358,2]
[347092866,1735493445999,-500.0,0.00012358,2]
[347092867,1735493446009,-500.0,0.00012358,2]
[347092868,1735493446019,-2758.61,0.00012358,2]
[347092869,1735493446029,-500.0,0.00012358,2]
[347092870,1735493446039,-500.0,0.00012358,2]
[347092871,1735493446048,-508.68,0.00012358,2]
[347092872,1735493446060,-1000.0,0.00012448,2]
[347092874,1735493446070,-420.0,0.00012452,2]
[347092875,1735493446080,-1420.36022575,0.00012498,2]
[347092876,1735493446089,-500.0,0.00012628,2]
[347092877,1735493446099,-500.0,0.00012628,2]
[347092878,1735493446108,-500.0,0.00012628,2]
[347092879,1735493446118,-3192.16,0.00012628,2]
[347092880,1735493446128,-500.0,0.00012628,2]
[347092881,1735493446138,-500.0,0.00012628,2]
[347092882,1735493446147,-500.0,0.00012628,2]
[347092883,1735493446156,-500.0,0.00012628,2]
[347092884,1735493446170,-1002.37,0.00012628,2]
[347092885,1735493446180,-500.0,0.00012628,2]
[347092886,1735493446189,-553.05,0.00012628,2]
[347092887,1735493446199,-500.0,0.00012628,2]
[347092888,1735493446209,-500.0,0.00012628,2]
[347092889,1735493446219,-500.0,0.00012628,2]
[347092890,1735493446229,-308.36,0.00012628,2]
[347092891,1735493446239,-500.0,0.00012628,2]
[347092892,1735493446249,-1915.21,0.00012628,2]
[347092893,1735493446258,-500.0,0.00012628,2]
[347092894,1735493446268,-500.0,0.00012628,2]
[347092895,1735493446278,-500.0,0.00012628,2]
[347092896,1735493446288,-500.0,0.00012628,2]
[347092897,1735493446298,-706.9,0.00012628,2]
[347092898,1735493446307,-854.58,0.00012628,2]
[347092899,1735493446317,-500.0,0.00012628,2]
[347092900,1735493446327,-620.24,0.00012628,2]
[347092901,1735493446337,-500.0,0.00012628,2]
[347092902,1735493446347,-500.0,0.00012629,2]
[347092903,1735493446356,-500.0,0.00012629,2]
[347092904,1735493446366,-500.0,0.00012629,2]
[347092905,1735493446376,-500.0,0.00012629,2]
[347092906,1735493446386,-500.0,0.00012629,2]
[347092907,1735493446396,-500.0,0.00012629,2]
[347092908,1735493446406,-500.0,0.00012629,2]
[347092909,1735493446415,-272.84,0.00012629,2]
[347092910,1735493446425,-280.68,0.00012629,2]
[347092911,1735493446435,-500.0,0.00012629,2]
[347092912,1735493446444,-500.0,0.00012629,2]
[347092913,1735493446453,-500.0,0.00012629,2]
[347092914,1735493446463,-500.0,0.00012629,2]
[347092915,1735493446473,-500.0,0.00012629,2]
[347092916,1735493446483,-500.0,0.00012629,2]
[347092917,1735493446493,-778.59,0.00012629,2]
[347092918,1735493446502,-153.29,0.00012629,2]
[347092919,1735493446512,-500.0,0.00012629,2]
[347092920,1735493446522,-194.44,0.00012629,2]
[347092921,1735493446531,-195.43,0.00012629,2]
[347092922,1735493446541,-500.0,0.00012629,2]
[347092923,1735493446550,-306.68,0.00012629,2]
[347092924,1735493446560,-165.52,0.00012629,2]
[347092925,1735493446570,-500.0,0.00012629,2]
[347092926,1735493446579,-515.94,0.00012629,2]
[347092927,1735493446588,-641.68,0.00012629,2]
[347092928,1735493446598,-500.0,0.00012629,2]
[347092929,1735493446607,-500.0,0.00012629,2]
[347092930,1735493446617,-500.0,0.00012629,2]
[347092931,1735493446626,-500.0,0.00012629,2]
[347092932,1735493446636,-500.0,0.00012629,2]
[347092933,1735493446645,-500.0,0.00012629,2]
[347092934,1735493446655,-500.0,0.00012629,2]
[347092935,1735493446664,-500.0,0.00012629,2]
[347092936,1735493446673,-273.73,0.00012629,2]
[347092937,1735493446683,-371.9,0.00012629,2]
[347092938,1735493446692,-1356.36,0.00012629,2]
[347092939,1735493446701,-153.095503,0.00012629,2]
[347092940,1735493446710,-500.0,0.00012629,2]
[347092941,1735493446720,-151.299562,0.00012629,2]
[347092942,1735493446730,-500.0,0.00012629,2]
[347092943,1735493446740,-457.45,0.00012629,2]
[347092944,1735493446749,-500.0,0.00012629,2]
[347092945,1735493446758,-500.0,0.00012629,2]
[347092946,1735493446769,-500.0,0.00012629,2]
[347092947,1735493446778,-631.1,0.00012629,2]
[347092948,1735493446788,-500.0,0.00012629,2]
[347092949,1735493446798,-430.79079861,0.00012629,2]
[347092950,1735493446807,-500.0,0.00012629,2]
[347092951,1735493446817,-500.0,0.00012629,2]
[347092952,1735493446826,-500.0,0.00012629,2]
[347092953,1735493446836,-1707.38,0.00012629,2]
[347092954,1735493446845,-326.41,0.00012629,2]
[347092955,1735493446854,-524.72,0.00012629,2]
[347092956,1735493446864,-500.0,0.00012629,2]
[347092957,1735493446873,-500.0,0.00012629,2]
[347092958,1735493446882,-500.0,0.00012629,2]
[347092959,1735493446892,-500.0,0.00012629,2]
[347092960,1735493446902,-500.0,0.00012629,2]
[347092961,1735493446912,-500.0,0.00012629,2]
[347092962,1735493446921,-500.0,0.00012629,2]
[347092963,1735493446931,-500.0,0.00012629,2]
[347092964,1735493446941,-500.0,0.00012629,2]
[347092965,1735493446952,-500.0,0.00012629,2]
[347092966,1735493446963,-343.61,0.00012629,2]
[347092967,1735493446972,-500.0,0.00012629,2]
[347092968,1735493446982,-500.0,0.00012629,2]
[347092969,1735493446992,-500.0,0.00012629,2]
[347092970,1735493447001,-294.27,0.0001263,2]
[347092971,1735493447010,-500.0,0.0001263,2]
[347092972,1735493447019,-500.0,0.0001263,2]
[347092973,1735493447029,-500.0,0.0001263,2]
[347092974,1735493447037,-298.76,0.0001263,2]
[347092975,1735493447047,-567.02,0.0001263,2]
[347092976,1735493447056,-500.0,0.0001263,2]
[347092977,1735493447065,-628.15,0.0001263,2]
[347092978,1735493447075,-189.03,0.0001263,2]
[347092979,1735493447084,-361.94,0.0001263,2]
[347092980,1735493447093,-309.74,0.0001263,2]
[347092981,1735493447102,-500.0,0.0001263,2]
[347092982,1735493447112,-229.34,0.0001263,2]
[347092983,1735493447121,-500.0,0.0001263,2]
[347092984,1735493447131,-721.2,0.0001263,2]
[347092985,1735493447140,-500.0,0.0001263,2]
[347092986,1735493447149,-500.0,0.0001263,2]
[347092987,1735493447159,-500.0,0.0001263,2]
[347092988,1735493447169,-500.0,0.00012631,2]
[347092989,1735493447178,-500.0,0.00012631,2]
[347092990,1735493447188,-3098.49,0.00012631,2]
[347092991,1735493447197,-500.0,0.00012631,2]
[347092992,1735493447207,-500.0,0.00012631,2]
[347092993,1735493447216,-500.0,0.00012631,2]
[347092994,1735493447225,-1148.81,0.00012631,2]
[347092995,1735493447235,-177.28,0.00012631,2]
[347092996,1735493447245,-500.0,0.00012631,2]
[347092997,1735493447254,-500.0,0.00012631,2]
[347092998,1735493447263,-625.29,0.00012631,2]
[347092999,1735493447273,-423.99,0.00012631,2]
[347093000,1735493447282,-500.0,0.00012631,2]
[347093001,1735493447291,-500.0,0.00012631,2]
[347093002,1735493447301,-500.0,0.00012631,2]
[347093003,1735493447310,-500.0,0.00012631,2]
[347093004,1735493447319,-429.41,0.00012631,2]
[347093005,1735493447329,-201.66,0.00012631,2]
[347093006,1735493447338,-500.0,0.00012631,2]
[347093007,1735493447347,-295.24,0.00012631,2]
[347093008,1735493447357,-280.4,0.00012631,2]
[347093009,1735493447366,-500.0,0.00012631,2]
[347093010,1735493447375,-267.52,0.00012631,2]
[347093011,1735493447384,-500.0,0.00012631,2]
[347093012,1735493447394,-621.63,0.00012631,2]
[347093013,1735493447403,-500.0,0.00012631,2]
[347093014,1735493447412,-500.0,0.00012631,2]
[347093015,1735493447421,-500.0,0.00012631,2]
[347093016,1735493447431,-500.0,0.00012631,2]
[347093017,1735493447440,-500.0,0.00012631,2]
[347093018,1735493447449,-710.53,0.00012631,2]
[347093019,1735493447459,-500.0,0.00012631,2]
[347093020,1735493447469,-500.0,0.00012631,2]
[347093021,1735493447479,-500.0,0.00012631,2]
[347093022,1735493447490,-789.75,0.00012631,2]
[347093023,1735493447500,-500.0,0.00012631,2]
[347093024,1735493447512,-531.59,0.00012631,2]
[347093025,1735493447523,-500.0,0.00012631,2]
[347093026,1735493447532,-619.53,0.00012631,2]
[347093027,1735493447542,-500.0,0.00012632,2]
[347093028,1735493447551,-515.98,0.00012632,2]
[347093029,1735493447561,-500.0,0.00012632,2]
[347093030,1735493447570,-500.0,0.00012632,2]
[347093031,1735493447580,-500.0,0.00012632,2]
[347093032,1735493447590,-500.0,0.00012632,2]
[347093033,1735493447646,-500.0,0.00012632,2]
[347093034,1735493447656,-500.0,0.00012632,2]
[347093035,1735493447666,-500.0,0.00012632,2]
[347093036,1735493447675,-500.0,0.00012632,2]
[347093037,1735493447684,-500.0,0.00012632,2]
[347093038,1735493447694,-2758.61,0.00012632,2]
[347093039,1735493447703,-500.0,0.00012632,2]
[347093040,1735493447713,-500.0,0.00012632,2]
[347093041,1735493447723,-231.72,0.00012725,2]
[347093042,1735493447732,-500.0,0.00012902,2]
[347093043,1735493447744,-500.0,0.00012902,2]
[347093044,1735493447754,-500.0,0.00012902,2]
[347093045,1735493447763,-3192.16,0.00012902,2]
[347093046,1735493447773,-500.0,0.00012902,2]
[347093047,1735493447782,-500.0,0.00012902,2]
[347093048,1735493447792,-500.0,0.00012902,2]
[347093049,1735493447801,-500.0,0.00012902,2]
[347093050,1735493447811,-1002.37,0.00012902,2]
[347093051,1735493447820,-500.0,0.00012902,2]
[347093052,1735493447830,-500.0,0.00012902,2]
[347093053,1735493447839,-500.0,0.00012902,2]
[347093054,1735493447848,-500.0,0.00012902,2]
[347093055,1735493447857,-500.0,0.00012902,2]
[347093056,1735493447867,-1915.21,0.00012902,2]
[347093057,1735493447877,-500.0,0.00012902,2]
[347093058,1735493447886,-500.0,0.00012902,2]
[347093059,1735493447896,-500.0,0.00012902,2]
[347093060,1735493447907,-500.0,0.00012902,2]
[347093061,1735493447917,-706.9,0.00012902,2]
[347093062,1735493447926,-854.58,0.00012902,2]
[347093063,1735493447936,-500.0,0.00012902,2]
[347093064,1735493447946,-500.0,0.00012902,2]
[347093065,1735493447958,-392.23,0.00012903,2]
[347093066,1735493447968,-500.0,0.00012903,2]
[347093067,1735493447977,-500.0,0.00012903,2]
[347093068,1735493447986,-500.0,0.00012903,2]
[347093069,1735493447998,-500.0,0.00012903,2]
[347093070,1735493448007,-500.0,0.00012903,2]
[347093071,1735493448017,-500.0,0.00012903,2]
[347093072,1735493448027,-500.0,0.00012903,2]
[347093073,1735493448036,-573.97,0.00012903,2]
[347093074,1735493448045,-155.24,0.00012903,2]
[347093075,1735493448055,-158.06,0.00012903,2]
[347093076,1735493448065,-500.0,0.00012903,2]
[347093077,1735493448074,-513.94,0.00012903,2]
[347093078,1735493448083,-778.59,0.00012903,2]
[347093079,1735493448092,-500.0,0.00012903,2]
[347093080,1735493448101,-500.0,0.00012903,2]
[347093081,1735493448111,-500.0,0.00012903,2]
[347093082,1735493448121,-248.78,0.00012903,2]
[347093083,1735493448130,-641.68,0.00012903,2]
[347093084,1735493448140,-500.0,0.00012903,2]
[347093085,1735493448149,-500.0,0.00012903,2]
[347093086,1735493448159,-500.0,0.00012903,2]
[347093087,1735493448168,-500.0,0.00012903,2]
[347093088,1735493448177,-500.0,0.00012903,2]
[347093089,1735493448187,-500.0,0.00012903,2]
[347093090,1735493448196,-500.0,0.00012903,2]
[347093091,1735493448205,-1356.36,0.00012903,2]
[347093092,1735493448215,-500.0,0.00012903,2]
[347093093,1735493448224,-151.299562,0.00012903,2]
[347093094,1735493448234,-620.4,0.00012903,2]
[347093095,1735493448244,-372.94,0.00012903,2]
[347093096,1735493448254,-500.0,0.00012903,2]
[347093097,1735493448263,-500.0,0.00012903,2]
[347093098,1735493448274,-500.0,0.00012903,2]
[347093099,1735493448284,-441.78,0.00012903,2]
[347093100,1735493448293,-500.0,0.00012903,2]
[347093101,1735493448302,-500.0,0.00012903,2]
[347093102,1735493448312,-1707.38,0.00012903,2]
[347093103,1735493448321,-500.0,0.00012903,2]
[347093104,1735493448330,-500.0,0.00012903,2]
[347093105,1735493448339,-500.0,0.00012903,2]
[347093106,1735493448349,-500.0,0.00012903,2]
[347093107,1735493448358,-500.0,0.00012903,2]
[347093108,1735493448368,-500.0,0.00012903,2]
[347093109,1735493448377,-500.0,0.00012903,2]
[347093110,1735493448386,-197.74,0.00012903,2]
[347093111,1735493448396,-500.0,0.00012903,2]
[347093112,1735493448405,-500.0,0.00012903,2]
[347093113,1735493448414,-500.0,0.00012903,2]
[347093114,1735493448424,-500.0,0.00012903,2]
[347093115,1735493448433,-500.0,0.00012903,2]
[347093116,1735493448441,-176.46,0.00012904,2]
[347093117,1735493448450,-500.0,0.00012904,2]
[347093118,1735493448460,-472.32,0.00012904,2]
[347093119,1735493448469,-439.68,0.00012904,2]
[347093120,1735493448478,-183.41,0.00012904,2]
[347093121,1735493448487,-500.0,0.00012904,2]
[347093122,1735493448498,-1630.45,0.00012904,2]
[347093123,1735493448507,-500.0,0.00012904,2]
[347093124,1735493448517,-721.2,0.00012904,2]
[347093125,1735493448527,-500.0,0.00012904,2]
[347093126,1735493448536,-500.0,0.00012904,2]
[347093127,1735493448545,-500.0,0.00012904,2]
[347093128,1735493448555,-500.0,0.00012904,2]
[347093129,1735493448564,-500.0,0.00012904,2]
[347093130,1735493448573,-500.0,0.00012905,2]
[347093131,1735493448582,-500.0,0.00012905,2]
[347093132,1735493448591,-3098.49,0.00012905,2]
[347093133,1735493448600,-500.0,0.00012905,2]
[347093134,1735493448609,-500.0,0.00012905,2]
[347093135,1735493448619,-500.0,0.00012905,2]
[347093136,1735493448627,-1148.81,0.00012905,2]
[347093137,1735493448637,-500.0,0.00012905,2]
[347093138,1735493448646,-500.0,0.00012905,2]
[347093139,1735493448655,-500.0,0.00012905,2]
[347093140,1735493448664,-500.0,0.00012905,2]
[347093141,1735493448674,-465.82,0.00012905,2]
[347093142,1735493448683,-500.0,0.00012905,2]
[347093143,1735493448692,-500.0,0.00012905,2]
[347093144,1735493448702,-500.0,0.00012905,2]
[347093145,1735493448711,-407.85,0.00012905,2]
[347093146,1735493448722,-500.0,0.00012905,2]
[347093147,1735493448731,-500.0,0.00012905,2]
[347093148,1735493448741,-500.0,0.00012905,2]
[347093149,1735493448750,-500.0,0.00012905,2]
[347093150,1735493448759,-565.87,0.00012905,2]
[347093151,1735493448769,-710.53,0.00012905,2]
[347093152,1735493448779,-500.0,0.00012905,2]
[347093153,1735493448788,-500.0,0.00012905,2]
[347093154,1735493448797,-500.0,0.00012905,2]
[347093155,1735493448806,-789.75,0.00012905,2]
[347093156,1735493448816,-500.0,0.00012905,2]
[347093157,1735493448826,-531.59,0.00012905,2]
[347093158,1735493448835,-500.0,0.00012905,2]
[347093159,1735493448845,-619.53,0.00012905,2]
[347093160,1735493448855,-500.0,0.00012906,2]
[347093161,1735493448864,-515.98,0.00012906,2]
[347093162,1735493448873,-500.0,0.00012906,2]
[347093163,1735493448882,-495.04,0.00012906,2]
[347093164,1735493448892,-500.0,0.00012906,2]
[347093165,1735493448902,-551.42,0.00012906,2]
[347093166,1735493448912,-500.0,0.00012906,2]
[347093167,1735493448922,-500.0,0.00012906,2]
[347093168,1735493448931,-500.0,0.00012906,2]
[347093169,1735493448941,-500.0,0.00012906,2]
[347093170,1735493448951,-500.0,0.00012906,2]
[347093171,1735493448963,-2758.61,0.00012906,2]
[347093172,1735493448973,-500.0,0.00012906,2]